[Event "Late-Titled-Tuesday-Blitz-August-29-2023"]
[Site "Chess.com"]
[Date "2023.08.29"]
[Round "1"]
[White "Andrei_Skvortsov"]
[Black "Onthequiet"]
[Result "1-0"]
[WhiteElo "2682"]
[BlackElo "2379"]
[TimeControl "180+1"]
[EndTime "14:05:15 PDT"]
[Termination "Andrei_Skvortsov won by resignation"]

1. e4 {[%clk 0:02:59.4]} 1... c6 {[%clk 0:02:58]} 2. e5 {[%clk 0:02:55.9]} 2...
d5 {[%clk 0:02:57.3]} 3. exd6 {[%clk 0:02:56.8]} 3... exd6 {[%clk 0:02:55.4]} 4.
Nf3 {[%clk 0:02:56.3]} 4... Nf6 {[%clk 0:02:54.5]} 5. d4 {[%clk 0:02:50.9]} 5...
Bg4 {[%clk 0:02:53.5]} 6. h3 {[%clk 0:02:49.1]} 6... Bh5 {[%clk 0:02:52.1]} 7.
Bd3 {[%clk 0:02:46.3]} 7... Be7 {[%clk 0:02:50.8]} 8. O-O {[%clk 0:02:45]} 8...
O-O {[%clk 0:02:50.4]} 9. Re1 {[%clk 0:02:44.3]} 9... Re8 {[%clk 0:02:48.8]} 10.
g4 {[%clk 0:02:37.3]} 10... Bg6 {[%clk 0:02:46.9]} 11. Nc3 {[%clk 0:02:32.3]}
11... Nbd7 {[%clk 0:02:45.3]} 12. Bf4 {[%clk 0:02:28.1]} 12... Nb6 {[%clk
0:02:43.8]} 13. Qd2 {[%clk 0:02:25.5]} 13... Nfd5 {[%clk 0:02:40.3]} 14. Nxd5
{[%clk 0:02:24]} 14... Nxd5 {[%clk 0:02:39.9]} 15. Bg3 {[%clk 0:02:24.2]} 15...
a5 {[%clk 0:02:33.5]} 16. c4 {[%clk 0:02:23.4]} 16... Bxd3 {[%clk 0:02:18.4]}
17. Qxd3 {[%clk 0:02:17.4]} 17... Nb4 {[%clk 0:02:17.1]} 18. Qc3 {[%clk
0:02:15.5]} 18... Bf6 {[%clk 0:02:14.3]} 19. a3 {[%clk 0:02:13.8]} 19... Na6
{[%clk 0:02:13]} 20. Rxe8+ {[%clk 0:02:11.5]} 20... Qxe8 {[%clk 0:02:12.8]} 21.
Bxd6 {[%clk 0:02:11.9]} 21... Qd7 {[%clk 0:02:01.4]} 22. Be5 {[%clk 0:02:07.7]}
22... Nc7 {[%clk 0:01:55.1]} 23. Bxf6 {[%clk 0:02:05.4]} 23... gxf6 {[%clk
0:01:55.5]} 24. Re1 {[%clk 0:02:04.7]} 24... Ne6 {[%clk 0:01:54.7]} 25. d5
{[%clk 0:01:37.1]} 25... cxd5 {[%clk 0:01:53.8]} 26. cxd5 {[%clk 0:01:36.7]}
26... Qxd5 {[%clk 0:01:52.2]} 27. Qxf6 {[%clk 0:01:35.9]} 27... Rc8 {[%clk
0:01:40.2]} 28. Ne5 {[%clk 0:01:31]} 28... Nf8 {[%clk 0:01:32.6]} 29. Qg5+
{[%clk 0:01:25.2]} 29... Ng6 {[%clk 0:01:27.1]} 30. h4 {[%clk 0:01:20.7]} 30...
f6 {[%clk 0:01:20.3]} 31. Nxg6 {[%clk 0:01:13.6]} 31... Qxg5 {[%clk 0:01:09.2]}
32. Ne7+ {[%clk 0:01:12.7]} 32... Kf7 {[%clk 0:01:07.3]} 33. hxg5 {[%clk
0:01:12.3]} 1-0

[Event "Late-Titled-Tuesday-Blitz-August-29-2023"]
[Site "Chess.com"]
[Date "2023.08.29"]
[Round "1"]
[White "JosephRyan"]
[Black "jk13"]
[Result "0-1"]
[WhiteElo "2357"]
[BlackElo "2668"]
[TimeControl "180+1"]
[EndTime "14:05:26 PDT"]
[Termination "jk13 won by checkmate"]

1. e4 {[%clk 0:03:00.9]} 1... e5 {[%clk 0:02:58]} 2. Nf3 {[%clk 0:02:59.6]} 2...
Nc6 {[%clk 0:02:58.5]} 3. Nc3 {[%clk 0:02:59.4]} 3... Nf6 {[%clk 0:02:57.8]} 4.
Bb5 {[%clk 0:02:59.2]} 4... Bd6 {[%clk 0:02:56.7]} 5. O-O {[%clk 0:02:58.1]}
5... O-O {[%clk 0:02:56.6]} 6. Bxc6 {[%clk 0:02:46.9]} 6... dxc6 {[%clk
0:02:56.4]} 7. d3 {[%clk 0:02:46.7]} 7... h6 {[%clk 0:02:51.6]} 8. h3 {[%clk
0:02:46]} 8... c5 {[%clk 0:02:51]} 9. Nh2 {[%clk 0:02:42.4]} 9... Re8 {[%clk
0:02:43.4]} 10. f4 {[%clk 0:02:40.7]} 10... exf4 {[%clk 0:02:15.8]} 11. Bxf4
{[%clk 0:02:41.6]} 11... Bxf4 {[%clk 0:02:13.7]} 12. Rxf4 {[%clk 0:02:41.9]}
12... Be6 {[%clk 0:02:11.2]} 13. Qf3 {[%clk 0:02:37.8]} 13... Nd7 {[%clk
0:02:00.6]} 14. Qf2 {[%clk 0:02:34.3]} 14... b6 {[%clk 0:01:59]} 15. Rf1 {[%clk
0:02:31.5]} 15... Ne5 {[%clk 0:01:58.6]} 16. Nf3 {[%clk 0:02:27.2]} 16... Ng6
{[%clk 0:01:57.9]} 17. Nh4 {[%clk 0:02:15.8]} 17... Nxf4 {[%clk 0:01:57.1]} 18.
Qxf4 {[%clk 0:02:16.7]} 18... Qg5 {[%clk 0:01:53.1]} 19. Qf2 {[%clk 0:02:11.5]}
19... Rad8 {[%clk 0:01:37.2]} 20. Nf3 {[%clk 0:02:11.1]} 20... Qf4 {[%clk
0:01:33.1]} 21. Ne2 {[%clk 0:02:10.1]} 21... Qf6 {[%clk 0:01:29.5]} 22. Qg3
{[%clk 0:02:09.4]} 22... Qxb2 {[%clk 0:01:27.9]} 23. Nf4 {[%clk 0:02:07.9]}
23... Qf6 {[%clk 0:01:23.7]} 24. e5 {[%clk 0:02:01.5]} 24... Qf5 {[%clk
0:01:24.1]} 25. Nh4 {[%clk 0:01:51.7]} 25... Qg5 {[%clk 0:01:24.2]} 26. Qh2
{[%clk 0:01:52]} 26... Rd4 {[%clk 0:01:18.1]} 27. Nxe6 {[%clk 0:01:46.9]} 27...
Rxe6 {[%clk 0:01:17.2]} 28. Nf3 {[%clk 0:01:46.9]} 28... Qe3+ {[%clk 0:01:17.1]}
29. Kh1 {[%clk 0:01:46.5]} 29... Rf4 {[%clk 0:01:15.5]} 30. Re1 {[%clk
0:01:43.9]} 30... Rxf3 {[%clk 0:01:15.4]} 31. Rxe3 {[%clk 0:01:42.1]} 31... Rxe3
{[%clk 0:01:11.3]} 32. Qf4 {[%clk 0:01:38.8]} 32... R3xe5 {[%clk 0:01:10.5]} 33.
Qa4 {[%clk 0:01:34.7]} 33... a5 {[%clk 0:01:09.8]} 34. Qd7 {[%clk 0:01:33.9]}
34... Re7 {[%clk 0:01:09.8]} 35. Qd8+ {[%clk 0:01:34.1]} 35... Kh7 {[%clk
0:01:10.4]} 36. Qc8 {[%clk 0:01:32.7]} 36... g6 {[%clk 0:01:10.3]} 37. Kh2
{[%clk 0:01:30.5]} 37... h5 {[%clk 0:01:10.6]} 38. Qb8 {[%clk 0:01:27.5]} 38...
Kg7 {[%clk 0:01:10.6]} 39. Qc8 {[%clk 0:01:27.8]} 39... Rg5 {[%clk 0:01:07.2]}
40. h4 {[%clk 0:01:19.5]} 40... Rg4 {[%clk 0:01:06.3]} 41. g3 {[%clk 0:01:20]}
41... Re2+ {[%clk 0:01:04.4]} 42. Kh3 {[%clk 0:01:19.4]} 42... Re3 {[%clk
0:01:03.3]} 43. a4 {[%clk 0:01:16.9]} 43... Rexg3+ {[%clk 0:01:01]} 44. Kh2
{[%clk 0:01:16.8]} 44... Rg2+ {[%clk 0:01:01]} 45. Kh3 {[%clk 0:01:17]} 45...
R4g3# {[%clk 0:01:01.1]} 0-1

[Event "Late-Titled-Tuesday-Blitz-August-29-2023"]
[Site "Chess.com"]
[Date "2023.08.29"]
[Round "1"]
[White "only_strong_moves"]
[Black "nihalsarin"]
[Result "0-1"]
[WhiteElo "2520"]
[BlackElo "3120"]
[TimeControl "180+1"]
[EndTime "14:05:29 PDT"]
[Termination "nihalsarin won by resignation"]

1. d4 {[%clk 0:02:57.6]} 1... c5 {[%clk 0:02:47.4]} 2. d5 {[%clk 0:02:57.3]}
2... e5 {[%clk 0:02:46.5]} 3. c4 {[%clk 0:02:57.3]} 3... d6 {[%clk 0:02:45.6]}
4. Nc3 {[%clk 0:02:57.3]} 4... Be7 {[%clk 0:02:46.1]} 5. Nf3 {[%clk 0:02:56.9]}
5... Bg4 {[%clk 0:02:37]} 6. g3 {[%clk 0:02:37.5]} 6... Nf6 {[%clk 0:02:32.9]}
7. Bg2 {[%clk 0:02:35.8]} 7... O-O {[%clk 0:02:33.5]} 8. O-O {[%clk 0:02:35.9]}
8... Nbd7 {[%clk 0:02:33.8]} 9. Nh4 {[%clk 0:02:11.5]} 9... Ne8 {[%clk
0:02:32.2]} 10. h3 {[%clk 0:02:00.6]} 10... Bh5 {[%clk 0:02:32.1]} 11. Nf5
{[%clk 0:01:58.3]} 11... Bg6 {[%clk 0:02:28.9]} 12. Nxe7+ {[%clk 0:01:45]} 12...
Qxe7 {[%clk 0:02:29.8]} 13. e4 {[%clk 0:01:45.4]} 13... Nc7 {[%clk 0:02:17.2]}
14. Bd2 {[%clk 0:01:35.1]} 14... a6 {[%clk 0:02:16.1]} 15. a4 {[%clk 0:01:34.5]}
15... b6 {[%clk 0:02:16.8]} 16. Qe2 {[%clk 0:01:32.5]} 16... f6 {[%clk
0:02:17.3]} 17. a5 {[%clk 0:01:27.9]} 17... Rfb8 {[%clk 0:02:16.3]} 18. axb6
{[%clk 0:01:24]} 18... Rxb6 {[%clk 0:02:17.2]} 19. Ra2 {[%clk 0:01:23.7]} 19...
Bf7 {[%clk 0:02:15.5]} 20. f4 {[%clk 0:01:20.6]} 20... Rab8 {[%clk 0:02:15.9]}
21. Bc1 {[%clk 0:01:11.6]} 21... Rb4 {[%clk 0:02:16]} 22. Na4 {[%clk 0:00:53.3]}
22... Nb6 {[%clk 0:02:07.7]} 23. Nxb6 {[%clk 0:00:51.8]} 23... R8xb6 {[%clk
0:02:08.6]} 24. Qc2 {[%clk 0:00:42]} 24... Bg6 {[%clk 0:02:03.9]} 25. Bd2 {[%clk
0:00:33]} 25... Rb3 {[%clk 0:02:04.1]} 26. fxe5 {[%clk 0:00:31.9]} 26... Qxe5
{[%clk 0:02:02.2]} 27. Bc3 {[%clk 0:00:15]} 27... Qxg3 {[%clk 0:02:01.4]} 28.
Ba5 {[%clk 0:00:15.7]} 28... Rb7 {[%clk 0:01:59.8]} 29. Bxc7 {[%clk 0:00:15.7]}
29... Rxc7 {[%clk 0:02:00.7]} 30. Rxa6 {[%clk 0:00:14.8]} 30... Rcb7 {[%clk
0:02:00.4]} 31. Ra8+ {[%clk 0:00:14.8]} 31... Kf7 {[%clk 0:02:00.4]} 32. Rf2
{[%clk 0:00:04.3]} 32... Rxb2 {[%clk 0:01:56.7]} 33. Qxb2 {[%clk 0:00:05.2]}
33... Rxb2 {[%clk 0:01:57.3]} 34. Rxb2 {[%clk 0:00:06.1]} 34... Bxe4 {[%clk
0:01:58]} 35. Kf1 {[%clk 0:00:03]} 35... Qd3+ {[%clk 0:01:55]} 0-1

[Event "Late-Titled-Tuesday-Blitz-August-29-2023"]
[Site "Chess.com"]
[Date "2023.08.29"]
[Round "1"]
[White "Fuzesabonyilaci"]
[Black "cassoulet"]
[Result "0-1"]
[WhiteElo "2417"]
[BlackElo "2728"]
[TimeControl "180+1"]
[EndTime "14:05:32 PDT"]
[Termination "cassoulet won by resignation"]

1. d4 {[%clk 0:03:00.9]} 1... Nf6 {[%clk 0:02:56.6]} 2. Nf3 {[%clk 0:02:56.5]}
2... g6 {[%clk 0:02:56.9]} 3. Bg5 {[%clk 0:02:49.3]} 3... Bg7 {[%clk 0:02:55.9]}
4. Nbd2 {[%clk 0:02:49.7]} 4... d5 {[%clk 0:02:56.3]} 5. g3 {[%clk 0:02:42.2]}
5... O-O {[%clk 0:02:55.9]} 6. Bg2 {[%clk 0:02:41.7]} 6... c5 {[%clk 0:02:56.2]}
7. dxc5 {[%clk 0:02:37.1]} 7... Qa5 {[%clk 0:02:52.7]} 8. O-O {[%clk 0:02:35.9]}
8... Qxc5 {[%clk 0:02:52.7]} 9. Nb3 {[%clk 0:02:36.1]} 9... Qc7 {[%clk
0:02:45.4]} 10. Bf4 {[%clk 0:02:34.3]} 10... Qb6 {[%clk 0:02:45.4]} 11. Be5
{[%clk 0:02:31.9]} 11... Nc6 {[%clk 0:02:43.2]} 12. c3 {[%clk 0:02:23.1]} 12...
Nxe5 {[%clk 0:02:39.9]} 13. Nxe5 {[%clk 0:02:24]} 13... Rd8 {[%clk 0:02:34.7]}
14. Qd4 {[%clk 0:02:12]} 14... Qc7 {[%clk 0:02:34.7]} 15. Nf3 {[%clk 0:02:06.4]}
15... Ne4 {[%clk 0:02:29.6]} 16. Qd1 {[%clk 0:02:06.1]} 16... e5 {[%clk
0:02:21.4]} 17. Nfd2 {[%clk 0:02:04.5]} 17... Nf6 {[%clk 0:02:18]} 18. Qc2
{[%clk 0:01:59.6]} 18... Be6 {[%clk 0:02:10.7]} 19. Rac1 {[%clk 0:01:56.8]}
19... Rac8 {[%clk 0:02:10.1]} 20. Qb1 {[%clk 0:01:46.1]} 20... a5 {[%clk
0:02:09.8]} 21. e4 {[%clk 0:01:41.4]} 21... a4 {[%clk 0:01:59.6]} 22. Na1 {[%clk
0:01:32.8]} 22... Bh6 {[%clk 0:01:59.5]} 23. Rcd1 {[%clk 0:00:54.1]} 23... Bg4
{[%clk 0:01:50.8]} 24. f3 {[%clk 0:00:43.4]} 24... Be6 {[%clk 0:01:48.9]} 25.
Kh1 {[%clk 0:00:27.7]} 25... d4 {[%clk 0:01:43]} 26. cxd4 {[%clk 0:00:17.2]}
26... Rxd4 {[%clk 0:01:43.9]} 27. Rc1 {[%clk 0:00:17.2]} 27... Qd8 {[%clk
0:01:32]} 28. Rxc8 {[%clk 0:00:17.2]} 28... Bxc8 {[%clk 0:01:32.6]} 29. f4
{[%clk 0:00:15.1]} 29... Rxd2 {[%clk 0:01:31.4]} 30. fxe5 {[%clk 0:00:15.5]}
30... Ng4 {[%clk 0:01:31.3]} 0-1

[Event "Late-Titled-Tuesday-Blitz-August-29-2023"]
[Site "Chess.com"]
[Date "2023.08.29"]
[Round "1"]
[White "Bauman_Guy"]
[Black "SergioMoralesG"]
[Result "1-0"]
[WhiteElo "2847"]
[BlackElo "2451"]
[TimeControl "180+1"]
[EndTime "14:05:33 PDT"]
[Termination "Bauman_Guy won by resignation"]

1. e4 {[%clk 0:03:00.9]} 1... c5 {[%clk 0:02:59.5]} 2. Nf3 {[%clk 0:03:00.7]}
2... e6 {[%clk 0:03:00]} 3. d4 {[%clk 0:03:00.9]} 3... cxd4 {[%clk 0:03:00.9]}
4. Nxd4 {[%clk 0:03:01.8]} 4... Nc6 {[%clk 0:03:01.5]} 5. Nc3 {[%clk 0:03:02.1]}
5... Qc7 {[%clk 0:03:02]} 6. g3 {[%clk 0:03:02.6]} 6... b6 {[%clk 0:02:56.8]} 7.
Bf4 {[%clk 0:03:01]} 7... e5 {[%clk 0:02:48.3]} 8. Ndb5 {[%clk 0:03:01]} 8...
Qb8 {[%clk 0:02:44.6]} 9. Be3 {[%clk 0:02:48.1]} 9... a6 {[%clk 0:02:43.7]} 10.
Na3 {[%clk 0:02:48.4]} 10... Nf6 {[%clk 0:02:36.5]} 11. Nc4 {[%clk 0:02:48.3]}
11... Nd4 {[%clk 0:02:20.5]} 12. Nxe5 {[%clk 0:02:43.3]} 12... Nxc2+ {[%clk
0:02:10]} 13. Qxc2 {[%clk 0:02:44.2]} 13... Qxe5 {[%clk 0:02:10.2]} 14. Bg2
{[%clk 0:02:44.6]} 14... Bc5 {[%clk 0:01:49.9]} 15. Bf4 {[%clk 0:02:44.5]} 15...
Qe6 {[%clk 0:01:37.3]} 16. O-O {[%clk 0:02:42.1]} 16... Bb7 {[%clk 0:01:33]} 17.
Nd5 {[%clk 0:02:29.8]} 17... O-O {[%clk 0:01:08.6]} 18. Nc7 {[%clk 0:02:27.8]}
18... Bxe4 {[%clk 0:00:58.5]} 19. Bxe4 {[%clk 0:02:17]} 19... Qxe4 {[%clk
0:00:57.7]} 20. Qxe4 {[%clk 0:02:17.2]} 20... Nxe4 {[%clk 0:00:58.6]} 21. Nxa8
{[%clk 0:02:17.5]} 21... Rxa8 {[%clk 0:00:59.4]} 22. Kg2 {[%clk 0:02:17.9]}
22... d5 {[%clk 0:00:53.8]} 23. Rad1 {[%clk 0:02:15.6]} 23... Rd8 {[%clk
0:00:51.6]} 24. f3 {[%clk 0:02:14.8]} 24... Nf6 {[%clk 0:00:49.8]} 25. Rfe1
{[%clk 0:02:14.3]} 25... h6 {[%clk 0:00:48.8]} 26. Be5 {[%clk 0:02:13.3]} 26...
Ne8 {[%clk 0:00:41.1]} 27. Bd4 {[%clk 0:02:08.2]} 27... Kf8 {[%clk 0:00:36.8]}
28. Re2 {[%clk 0:02:04.8]} 28... Nd6 {[%clk 0:00:33.6]} 29. Bxc5 {[%clk
0:02:04.3]} 29... bxc5 {[%clk 0:00:34.5]} 30. Rxd5 {[%clk 0:02:04.6]} 30... f6
{[%clk 0:00:30.6]} 31. Rxc5 {[%clk 0:02:03.8]} 31... Rb8 {[%clk 0:00:28.8]} 32.
b3 {[%clk 0:02:03.2]} 32... Nb5 {[%clk 0:00:28.9]} 33. Rd2 {[%clk 0:02:02.4]}
33... Ke7 {[%clk 0:00:27.8]} 34. Rc6 {[%clk 0:02:02.4]} 34... Rb7 {[%clk
0:00:26.4]} 35. Rxa6 {[%clk 0:02:02.4]} 35... Nc3 {[%clk 0:00:24.9]} 36. Rc6
{[%clk 0:02:01.9]} 36... Nb5 {[%clk 0:00:24.6]} 37. a4 {[%clk 0:02:01]} 37...
Nc7 {[%clk 0:00:24.7]} 38. a5 {[%clk 0:01:59.7]} 38... Nb5 {[%clk 0:00:17]} 39.
Rb6 {[%clk 0:01:59]} 39... Rxb6 {[%clk 0:00:13.8]} 40. axb6 {[%clk 0:01:59.9]}
40... Nd6 {[%clk 0:00:14.2]} 41. Rc2 {[%clk 0:02:00.3]} 41... Kd7 {[%clk
0:00:14.3]} 42. Rc7+ {[%clk 0:02:00.7]} 42... Kd8 {[%clk 0:00:14.7]} 43. Rxg7
{[%clk 0:02:01.6]} 1-0

[Event "Late-Titled-Tuesday-Blitz-August-29-2023"]
[Site "Chess.com"]
[Date "2023.08.29"]
[Round "1"]
[White "jeetjain"]
[Black "egnfanclub"]
[Result "1-0"]
[WhiteElo "2608"]
[BlackElo "2308"]
[TimeControl "180+1"]
[EndTime "14:05:42 PDT"]
[Termination "jeetjain won on time"]

1. d4 {[%clk 0:03:00.4]} 1... d5 {[%clk 0:02:59.6]} 2. Nf3 {[%clk 0:03:00.6]}
2... Nf6 {[%clk 0:02:59]} 3. Bf4 {[%clk 0:03:00.4]} 3... Bf5 {[%clk 0:02:59]} 4.
e3 {[%clk 0:02:59.5]} 4... e6 {[%clk 0:02:59.2]} 5. c3 {[%clk 0:02:59.3]} 5...
c6 {[%clk 0:02:54.5]} 6. Nh4 {[%clk 0:02:57.2]} 6... Be4 {[%clk 0:02:47]} 7. f3
{[%clk 0:02:55.7]} 7... Bg6 {[%clk 0:02:30.7]} 8. Nxg6 {[%clk 0:02:54.8]} 8...
hxg6 {[%clk 0:02:31.6]} 9. h3 {[%clk 0:02:54.7]} 9... Bd6 {[%clk 0:02:29.9]} 10.
Bxd6 {[%clk 0:02:53.7]} 10... Qxd6 {[%clk 0:02:30.8]} 11. Kf2 {[%clk 0:02:52.3]}
11... Nbd7 {[%clk 0:02:30]} 12. Nd2 {[%clk 0:02:51.1]} 12... Nh5 {[%clk
0:02:28.2]} 13. f4 {[%clk 0:02:45.3]} 13... Nhf6 {[%clk 0:02:25.3]} 14. Bd3
{[%clk 0:02:44.8]} 14... O-O-O {[%clk 0:02:06.8]} 15. a4 {[%clk 0:02:44.1]}
15... c5 {[%clk 0:02:06.4]} 16. a5 {[%clk 0:02:39.4]} 16... a6 {[%clk
0:02:04.9]} 17. Qf3 {[%clk 0:02:24.3]} 17... Kb8 {[%clk 0:02:00.5]} 18. Rhb1
{[%clk 0:02:23.3]} 18... cxd4 {[%clk 0:01:42.4]} 19. cxd4 {[%clk 0:02:17]} 19...
Qb4 {[%clk 0:01:32.8]} 20. Qd1 {[%clk 0:02:16.5]} 20... Rc8 {[%clk 0:01:15.6]}
21. Ra4 {[%clk 0:02:15.5]} 21... Qd6 {[%clk 0:01:16.2]} 22. b4 {[%clk
0:02:15.1]} 22... Rc3 {[%clk 0:01:04.7]} 23. Qe2 {[%clk 0:02:14.7]} 23... Rhc8
{[%clk 0:00:49.7]} 24. b5 {[%clk 0:02:13.6]} 24... axb5 {[%clk 0:00:49.8]} 25.
Rab4 {[%clk 0:02:12.5]} 25... Rc1 {[%clk 0:00:39.8]} 26. R1b2 {[%clk 0:02:11.6]}
26... g5 {[%clk 0:00:30.5]} 27. Rxb5 {[%clk 0:02:08.3]} 27... R8c7 {[%clk
0:00:27.6]} 28. fxg5 {[%clk 0:02:05.9]} 28... Ne8 {[%clk 0:00:15.5]} 29. a6
{[%clk 0:01:58.3]} 29... Qh2 {[%clk 0:00:13.6]} 30. Rxb7+ {[%clk 0:01:54.6]}
30... Rxb7 {[%clk 0:00:13.7]} 31. Rxb7+ {[%clk 0:01:55.3]} 31... Kc8 {[%clk
0:00:14.1]} 32. Nf3 {[%clk 0:01:53.3]} 32... Qd6 {[%clk 0:00:09.5]} 33. Qb2
{[%clk 0:01:49.8]} 33... Qc6 {[%clk 0:00:08.3]} 34. Rxd7 {[%clk 0:01:42.3]}
34... Qxd7 {[%clk 0:00:07.3]} 35. Qxc1+ {[%clk 0:01:42.1]} 1-0

[Event "Late-Titled-Tuesday-Blitz-August-29-2023"]
[Site "Chess.com"]
[Date "2023.08.29"]
[Round "1"]
[White "SicilianPanzer"]
[Black "aa175"]
[Result "0-1"]
[WhiteElo "2309"]
[BlackElo "2609"]
[TimeControl "180+1"]
[EndTime "14:05:44 PDT"]
[Termination "aa175 won by resignation"]

1. Nf3 {[%clk 0:02:59.4]} 1... d5 {[%clk 0:02:59]} 2. g3 {[%clk 0:02:59.1]} 2...
Bf5 {[%clk 0:02:58.9]} 3. Bg2 {[%clk 0:02:59]} 3... e6 {[%clk 0:02:54.8]} 4. O-O
{[%clk 0:02:59.1]} 4... Nf6 {[%clk 0:02:54.8]} 5. c4 {[%clk 0:02:58.8]} 5... c6
{[%clk 0:02:54.9]} 6. cxd5 {[%clk 0:02:58.1]} 6... cxd5 {[%clk 0:02:54.6]} 7. d3
{[%clk 0:02:55.2]} 7... Nc6 {[%clk 0:02:46.2]} 8. Nc3 {[%clk 0:02:50.8]} 8...
Be7 {[%clk 0:02:45.5]} 9. Qb3 {[%clk 0:02:49.7]} 9... Qb6 {[%clk 0:02:42.6]} 10.
Qxb6 {[%clk 0:02:37]} 10... axb6 {[%clk 0:02:43.5]} 11. Be3 {[%clk 0:02:36.1]}
11... Nd7 {[%clk 0:02:39.2]} 12. Nd4 {[%clk 0:02:31.6]} 12... Bg6 {[%clk
0:02:14.4]} 13. f4 {[%clk 0:02:27.2]} 13... Bc5 {[%clk 0:02:10.2]} 14. Nc2
{[%clk 0:02:12.1]} 14... Bxe3+ {[%clk 0:02:09.7]} 15. Nxe3 {[%clk 0:02:11.3]}
15... d4 {[%clk 0:02:10.3]} 16. Nb5 {[%clk 0:02:01.1]} 16... dxe3 {[%clk
0:02:04.3]} 17. Nc7+ {[%clk 0:02:00.2]} 17... Ke7 {[%clk 0:02:04.3]} 18. Nxa8
{[%clk 0:01:57.6]} 18... Rxa8 {[%clk 0:02:05.2]} 19. Rfc1 {[%clk 0:01:56.5]}
19... Nd4 {[%clk 0:01:59.4]} 20. Kf1 {[%clk 0:01:55.8]} 20... Nc5 {[%clk
0:01:57.9]} 21. b4 {[%clk 0:01:55.1]} 21... Nxd3 {[%clk 0:01:40.2]} 22. exd3
{[%clk 0:01:35.3]} 22... Bxd3+ {[%clk 0:01:40]} 23. Ke1 {[%clk 0:01:35.1]} 23...
Nc2+ {[%clk 0:01:40.4]} 24. Rxc2 {[%clk 0:01:32.1]} 24... Bxc2 {[%clk
0:01:41.3]} 25. a3 {[%clk 0:01:20.5]} 25... Rd8 {[%clk 0:01:23.8]} 26. Bxb7
{[%clk 0:01:08.2]} 26... Rd2 {[%clk 0:01:19.2]} 27. h4 {[%clk 0:01:08.2]} 27...
Bd3 {[%clk 0:01:04.5]} 28. Rd1 {[%clk 0:00:41.6]} 28... Re2+ {[%clk 0:01:03.5]}
29. Kf1 {[%clk 0:00:41.6]} 29... Rf2+ {[%clk 0:01:04.4]} 30. Kg1 {[%clk
0:00:35.8]} 30... e2 {[%clk 0:01:04.7]} 0-1

[Event "Late-Titled-Tuesday-Blitz-August-29-2023"]
[Site "Chess.com"]
[Date "2023.08.29"]
[Round "1"]
[White "MYMChessAcademy"]
[Black "AndreiITrifan"]
[Result "0-1"]
[WhiteElo "2230"]
[BlackElo "2562"]
[TimeControl "180+1"]
[EndTime "14:05:46 PDT"]
[Termination "AndreiITrifan won by checkmate"]

1. e4 {[%clk 0:03:00.5]} 1... e5 {[%clk 0:02:55.9]} 2. Nf3 {[%clk 0:03:00.6]}
2... Nc6 {[%clk 0:02:56.1]} 3. Bc4 {[%clk 0:03:00.4]} 3... Bc5 {[%clk
0:02:55.8]} 4. d3 {[%clk 0:03:00.7]} 4... Nf6 {[%clk 0:02:55.5]} 5. c3 {[%clk
0:03:01.3]} 5... d6 {[%clk 0:02:55.5]} 6. a4 {[%clk 0:03:01.6]} 6... a6 {[%clk
0:02:55.7]} 7. b4 {[%clk 0:03:01.4]} 7... Ba7 {[%clk 0:02:52.4]} 8. O-O {[%clk
0:03:01.3]} 8... h6 {[%clk 0:02:50.9]} 9. h3 {[%clk 0:03:01.6]} 9... g5 {[%clk
0:02:50.7]} 10. Re1 {[%clk 0:02:56.2]} 10... g4 {[%clk 0:02:48.1]} 11. hxg4
{[%clk 0:02:52.6]} 11... Bxg4 {[%clk 0:02:49]} 12. Be3 {[%clk 0:02:52.2]} 12...
Nh5 {[%clk 0:02:38.9]} 13. Nbd2 {[%clk 0:02:48.2]} 13... Qf6 {[%clk 0:02:20.7]}
14. b5 {[%clk 0:02:41.9]} 14... Bxe3 {[%clk 0:02:14.3]} 15. Rxe3 {[%clk
0:02:24.7]} 15... Ne7 {[%clk 0:02:10.2]} 16. bxa6 {[%clk 0:02:23.7]} 16... bxa6
{[%clk 0:02:11.1]} 17. a5 {[%clk 0:02:20.8]} 17... Nf4 {[%clk 0:02:04.1]} 18. d4
{[%clk 0:02:19.8]} 18... Rg8 {[%clk 0:01:58.4]} 19. dxe5 {[%clk 0:02:15.8]}
19... dxe5 {[%clk 0:01:50.5]} 20. Kf1 {[%clk 0:02:14.6]} 20... Nxg2 {[%clk
0:01:42.3]} 21. Rd3 {[%clk 0:02:00.4]} 21... Nf4 {[%clk 0:01:13.2]} 22. Re3
{[%clk 0:01:59.7]} 22... Be6 {[%clk 0:01:02.9]} 23. Bxe6 {[%clk 0:01:52.6]}
23... Qxe6 {[%clk 0:01:03.8]} 24. Qa4+ {[%clk 0:01:51.6]} 24... c6 {[%clk
0:01:01.7]} 25. Ne1 {[%clk 0:01:46.8]} 25... Rd8 {[%clk 0:00:57]} 26. Nc4 {[%clk
0:01:32.7]} 26... Qg4 {[%clk 0:00:42.9]} 27. Nf3 {[%clk 0:01:07]} 27... Qg2+
{[%clk 0:00:33.3]} 28. Ke1 {[%clk 0:01:06.6]} 28... Qh1+ {[%clk 0:00:25.4]} 29.
Ng1 {[%clk 0:00:59.6]} 29... Rxg1# {[%clk 0:00:26.3]} 0-1